Cogmind - Beta 17 @@@ ROGUE MODE // 2026.06.27 @ 21:54:55 Player: THN-L0C Result: Destroyed by 0X-VS5(R) with Subdweller Shrapnel Launcher Performance ------------- Evolutions (0) 0 Regions Visited (2) 400 Robots Destroyed (14) 70 Value Destroyed (123) 123 Prototype IDs (14) 280 Alien Tech Used (0) 0 Bonus (0) 0 TOTAL SCORE: 873 Bonus ------- None Cogmind --------- Core Integrity 0/250 Matter 285/300 Energy 100/100 System Corruption 0% Temperature Cool (0) Movement Treading (240) Ox1 Location -10/Subcaves Parts ------- > --- POWER (1) -------- (None) > --- PROPULSION (2) --- Light Treads Light Treads > --- UTILITY (2) ------ High-capacity Storage Unit Seismic Detector > --- WEAPON (2) ------- Light Assault Rifle Hammer > --- INVENTORY (20) --- Arachnoskeleton Heat Sink Cargo Storage Unit Large Battery (200) Weight Redist. System Signal Interpreter Improved Terrain Scanner ECM Suite Propulsion Shielding Utility Shielding Utility Shielding Tractor Beam Self-contained Transmogrifier Power Bank Light Assault Rifle Datajack Mining Laser Peak State ------------ > --- POWER ------------ Ion Engine > --- PROPULSION ------- Light Treads Light Treads > --- UTILITY ---------- High-capacity Storage Unit Improved Terrain Scanner > --- WEAPON ----------- Light Assault Rifle Hammer > --- INVENTORY -------- Arachnoskeleton Heat Sink Cargo Storage Unit Large Battery Weight Redist. System Signal Interpreter Seismic Detector ECM Suite Propulsion Shielding Utility Shielding Utility Shielding Tractor Beam Self-contained Transmogrifier Power Bank Light Assault Rifle Datajack Mining Laser [Rating: 14] Favorites ----------- Power Ion Engine Engine Ion Engine Propulsion Light Treads Treads Light Treads Wheel Compact Wheel Utility High-capacity Storage Unit Device Seismic Detector Storage High-capacity Storage Unit Weapon Hammer Ballistic Gun Light Assault Rifle Special Weapon Mining Laser Impact Weapon Hammer Build | -11 -10 -10 ------- Run | Yrd Mat Sub Slots Evolved . | . . . Power . | . . . Propulsion . | . . . Utility . | . . . Weapon . | . . . Parts Attached 14 | 7 3 4 Power 1 | 1 . . Engine 1 | 1 . . Core . | . . . Reactor . | . . . Propulsion 4 | 2 . 2 Treads 2 | . . 2 Leg . | . . . Wheel 2 | 2 . . Hover . | . . . Flight . | . . . Utility 4 | 2 1 1 Device 2 | 1 . 1 Storage 2 | 1 1 . Processor . | . . . Hackware . | . . . Protection . | . . . Artifact . | . . . Weapon 5 | 2 2 1 Energy Gun . | . . . Energy Cannon . | . . . Ballistic Gun 3 | 2 . 1 Ballistic Cannon . | . . . Launcher . | . . . Special Weapon 1 | . 1 . Impact Weapon 1 | . 1 . Slashing Weapon . | . . . Piercing Weapon . | . . . Special Melee Weapon . | . . . Unidentified Prototypes . | . . . Parts Lost 4 | . . 4 Power 1 | . . 1 Propulsion 2 | . . 2 Utility . | . . . Weapon 1 | . . 1 Highest Loss Streak 3 | . . 3 To Critical Strikes . | . . . Average Backups 14 | 3 12 17 Power . | . . . Propulsion 1 | 1 2 . Utility 9 | . 6 12 Weapon 2 | 1 2 2 Tool/Special . | . . . Unused Backups 16 | . . 16 Power . | . . . Propulsion 1 | . . 1 Utility 13 | . . 13 Weapon . | . . . Tool/Special 2 | . . 2 Average Slot Usage (%) 98 | . 99 98 Engine 13 | . 14 13 Treads 15 | . . 26 Wheel 11 | . 28 1 Device 13 | . 13 14 Storage 14 | . 14 14 Ballistic Gun 14 | . 16 13 Special Weapon 1 | . 3 . Impact Weapon 11 | . 8 13 Peak Build Rating 14 | 7 9 14 Average Rating 9 | 5 8 10 On Entrance 5 | . 7 9 Avg Prop Armor Cover (%) . | . . . Naked Turns . | . . . Heaviest Build 50 | 14 50 50 Greatest Support 40 | 32 32 40 Greatest Overweight (x) 2 | 1 1 2 Average Overweight (x) . | . . 1 Largest Inventory Capacity 20 | 8 20 20 Average Capacity 18 | 7 19 20 Most Carried 20 | 6 20 20 Average Carried 16 | 3 13 19 Final Capacity 20 | 8 20 20 Final Carried 20 | 6 20 20 Class Distribution -------------------- 100% | Mutant Dominant Class ---------------- Mutant | -10/Materials Mutant | -10/Subcaves Resources | -11 -10 -10 ----------- Run | Yrd Mat Sub Matter Collected 542 | 351 140 51 Remotely . | . . . Salvage Created 274 | 106 168 . Parts 29 | 14 15 . Haulers Intercepted 1 | . 1 . Recyclers Shooed 2 | 2 . . Parts Field Recycled . | . . . Retrieved Matter . | . . . Parts Self-Destructed 11 | . . 11 Prevented . | . . . Parts Restored . | . . . Kills | -11 -10 -10 ------- Run | Yrd Mat Sub Combat Hostiles Destroyed 6 | . 6 . Melee 4 | . 4 . Guns 2 | . 2 . Classes Destroyed 6 | 2 4 . Worker 1 | 1 . . Tunneler 4 | 4 . . Hauler 1 | . 1 . Operator 1 | . 1 . Watcher 1 | . 1 . Swarmer 6 | . 6 . Best Kill Streak 4 | 4 3 . Combat Bots Only 3 | . 3 . Max Kills in Single Turn 2 | 2 1 . Gunslinging . | . . . Exploded . | . . . Melee 1 | . 1 . Uniques/NPCs Destroyed . | . . . Combat | -11 -10 -10 -------- Run | Yrd Mat Sub Hostile Shots Fired 91 | . 37 54 Missed 38 | . 11 27 Hits 53 | . 26 27 Projectile 53 | . 26 27 AOE 7 | . . 7 Damage Taken 780 | . 209 571 Core 256 | . 24 232 Absorbed by Shields . | . . . Regen/Repaired (Parts) 10 | . 10 . Core Remaining (%) 100 | 100 . . Volleys Fired 38 | 13 24 1 Largest 2 | 2 2 1 Hottest 100 | 40 100 20 Shots Fired 56 | 26 29 1 Gun 41 | 26 14 1 Cannon . | . . . Launcher . | . . . Special 15 | . 15 . Kinetic 41 | 26 14 1 Thermal 15 | . 15 . Explosive . | . . . Electromagnetic . | . . . Robot Hit Streak 7 | 7 7 . Robot Miss Streak 2 | 2 1 . Penetration Max . | . . . Secondary Targets . | . . . Shots Hit Robots 37 | 17 19 1 Core Hits 18 | 8 10 . Critical Kills . | . . . Critical Parts Destroyed 2 | . 2 . Critical Strikes 2 | . 2 . Smash 2 | . 2 . Melee Attacks 34 | . 23 11 Impact 34 | . 23 11 Slashing . | . . . Piercing . | . . . Sneak Attacks . | . . . Combat Hostiles . | . . . Follow-up Attacks . | . . . Damage Inflicted 563 | 191 340 32 Guns 302 | 191 111 . Cannons . | . . . Explosions . | . . . Melee 261 | . 229 32 Ramming . | . . . Kinetic 302 | 191 111 . Thermal . | . . . Explosive . | . . . Electromagnetic . | . . . Impact 261 | . 229 32 Slashing . | . . . Piercing . | . . . Highest Corruption . | . . . Average Corruption . | . . . Corruption Purged . | . . . Corruption Blocked . | . . . Overload Shots . | . . . Overflow Damage 63 | . 63 . Projectiles . | . . . Explosions . | . . . Melee 63 | . 63 . Knockbacks 1 | . 1 . Impact 1 | . 1 . Kinetic . | . . . Secondary . | . . . Self-Inflicted Damage . | . . . Shots . | . . . Rammed . | . . . Targets Rammed . | . . . Kicked . | . . . Crushed . | . . . Highest Temperature 100 | . 100 . Average Temperature 39 | . 39 . Received Heat Transfer 117 | . . 117 Siege Activations . | . . . Martial Activations . | . . . Shielding Activations . | . . . Robots Disrupted . | . . . Combat Hostiles . | . . . Robots Corrupted 1 | . 1 . Combat Hostiles . | . . . Parts Fried 2 | . 2 . Impact Corruptions 4 | . 4 . Robots Melted . | . . . Combat Hostiles . | . . . Parts Melted . | . . . Heat Transferred . | . . . Parts Sabotaged . | . . . Parts Stolen . | . . . Parts Stripped . | . . . Power Chain Reactions . | . . . Alert | -11 -10 -10 ------- Run | Yrd Mat Sub Maximum Alert Level . | . . . Low Security (%) 100 | 100 100 . Level 1 . | . . . Level 2 . | . . . Level 3 . | . . . Level 4 . | . . . Level 5 . | . . . High Security . | . . . Max Security . | . . . Peak Influence 72 | 15 72 . Initial . | . . . Average 10 | 2 11 . Influence Increases 317 | 25 217 75 Destroy 0b10 Robot/C 120 | . 120 . Destroy 0b10 Robot/NC 40 | 25 15 . Destroy Leader 24 | . 24 . Successful Hack 20 | . 20 . Destroy Structure 8 | . 8 . Lose Combat Pursuer 105 | . 30 75 Influence Decreases 317 | 25 157 135 Entered New Map 29 | . . 29 Time Decay 258 | 25 157 76 Lost Part 30 | . . 30 Squads Dispatched 1 | . 1 . Investigation . | . . . Extermination . | . . . Reinforcement 1 | . 1 . Assault . | . . . Garrison . | . . . Intercept . | . . . Searches Triggered . | . . . Construction Impeded . | . . . Haulers Reinforced . | . . . Active Scanning Responses . | . . . Cargo Convoy Interrupts . | . . . Stealth | -11 -10 -10 --------- Run | Yrd Mat Sub Distress Signals . | . . . Communications Jammed . | . . . Distress Signals . | . . . Times Spotted 21 | . 13 8 Peak Tracking Total 9 | . 3 9 Tactical Retreats 3 | . 1 2 Traps | -11 -10 -10 ------- Run | Yrd Mat Sub Traps Triggered . | . . . Indirectly . | . . . Trap Hack Attempts . | . . . Triggered . | . . . Disarmed . | . . . Reprogrammed . | . . . Reused . | . . . Traps Extracted . | . . . Installed . | . . . Triggered . | . . . Machines | -11 -10 -10 ---------- Run | Yrd Mat Sub Machines Disabled 1 | . . 1 Max in Single Turn 1 | . . 1 Machines Repaired . | . . . Machines Dismantled . | . . . Machines Sabotaged . | . . . Overloaded Fab Kills . | . . . Hacking | -11 -10 -10 --------- Run | Yrd Mat Sub Machines Accessed 8 | . 7 1 Terminals 4 | . 4 . Fabricators . | . . . Repair Stations 1 | . 1 . Recycling Units 2 | . 2 . Scanalyzers . | . . . Garrison Access . | . . . Total Hacks 19 | . 18 1 Successful 9 | . 8 1 Failed 10 | . 10 . Catastrophic . | . . . Database Lockouts . | . . . Manual 3 | . 3 . Terminals 8 | . 8 . Fabricators . | . . . Repair Stations 3 | . 3 . Recycling Units 7 | . 7 . Scanalyzers . | . . . Garrison Access . | . . . Terminal Hacks 3 | . 2 1 Record 1 | . 1 . Zone Layout 1 | . 1 . Proto ID Catalog 1 | . . 1 Fabricator Hacks . | . . . Repair Station Hacks 2 | . 2 . Scan Component 1 | . 1 . Repair 1 | . 1 . Recycling Unit Hacks 3 | . 3 . Report Inventory 2 | . 2 . Retrieve Components 1 | . 1 . Scanalyzer . | . . . Garrison Access Hacks . | . . . Unauthorized Hacks 1 | . 1 . Terminals . | . . . Fabricators . | . . . Repair Stations . | . . . Recycling Units 1 | . 1 . Monitor 1 | . 1 . Scanalyzers . | . . . Garrison Access . | . . . Data Cores Recovered 1 | . 1 . Used . | . . . Hacking Detections 5 | . 5 . Full Trace Events . | . . . Feedback Events . | . . . Feedback Blocked . | . . . Robot Schematics Acquired . | . . . Robots Built . | . . . Authchips . | . . . Time . | . . . Total Robot Build Rating . | . . . Part Schematics Acquired . | . . . Parts Built . | . . . Authchips . | . . . Time . | . . . Total Part Build Rating . | . . . Part Studies Acquired . | . . . Parts Repaired 1 | . 1 . Time 26 | . 26 . Parts Recycled . | . . . Recycled Matter . | . . . Retrieved Matter . | . . . Retrieved Components 2 | . 2 . Parts Scanalyzed . | . . . Part Schematics Acquired . | . . . Parts Damaged . | . . . Bothacking | -11 -10 -10 ------------ Run | Yrd Mat Sub Used RIF Installer . | . . . Robots Hacked . | . . . Non-combat . | . . . Combat . | . . . Robot Hacks Applied . | . . . Relay Couplers Released . | . . . Fabnet Peak Effective % . | . . . Robots Rewired . | . . . Allies Hacked . | . . . Hacks Repelled . | . . . Allies | -11 -10 -10 -------- Run | Yrd Mat Sub Total Allies . | . . . Largest Group . | . . . Highest-Rated Group . | . . . Highest-Rated Ally . | . . . Total Orders . | . . . Ally Attacks . | . . . Total Damage . | . . . Kills . | . . . Allies Corrupted . | . . . Allies Melted . | . . . Intel | -11 -10 -10 ------- Run | Yrd Mat Sub Active Infowar (turns) 2239 | 52 849 1338 Terrain 260 | . . 260 Seismic 1979 | 52 849 1078 Robot Analysis Total . | . . . Derelict Logs Recovered . | . . . Drone Launches . | . . . Drone Recoveries . | . . . Exploration | -11 -10 -10 ------------- Run | Yrd Mat Sub Turns Passed 2343 | 130 875 1338 Spaces Moved 1075 | 77 557 441 Core 6 | 6 . . Treads 399 | . . 399 Legs . | . . . Wheels 670 | 71 557 42 Hover . | . . . Flight . | . . . Fastest Speed 50 | 50 100 115 Average Speed 159 | 97 113 228 Slowest Speed 240 | 100 115 240 Overloaded Moves . | . . . Propulsion Burnouts . | . . . Robots Hopped . | . . . Potential Cave-ins . | . . . Cave-ins Triggered . | . . . Exploration Rate (%) 32 | 4 74 18 Regions Visited 2 Branch Regions 1 Pre-discovered Areas . | . . . Known Exits Taken . | . . . Unknown Exits Taken 2 | 1 1 . Scrap Searched . | . . . Spaces Dug 10 | . 8 2 Terrain Destroyed 11 | . 9 2 Melee 6 | . 4 2 Projectile 5 | . 5 . AOE . | . . . Terrain Rammed . | . . . Walls Destroyed . | . . . Machines Disabled . | . . . Actions | -11 -10 -10 --------- Run | Yrd Mat Sub Total 1557 | 105 700 752 Wait 366 | 3 76 287 Move 1073 | 76 556 441 Hop . | . . . Pick Up 23 | 6 14 3 Fast Attach 8 | 7 1 . Attach 3 | . . 3 Detach . | . . . Swap 9 | . 5 4 Drop 3 | . 1 2 Fire 38 | 13 24 1 Melee 34 | . 23 11 Ram . | . . . Kick . | . . . Crush . | . . . Escape Stasis . | . . . Rewire . | . . . Trap . | . . . Miscellaneous . | . . . Route ------- -11/Scrapyard -10/Materials (discovered 5 exits: [*Mat x2] / [*Min x2] / *Sub) -10/Subcaves History --------- Turn | Location | Event 19 | -11/Scrapyard | Discovered new exit (range 16) 131 | -11/Scrapyard | Entered Materials 305 | -10/Materials | Build established: Mutant 317 | -10/Materials | Discovered new exit (range 9) 514 | -10/Materials | Repaired Seismic Detector 684 | -10/Materials | Discovered new exit (range 5) 781 | -10/Materials | Discovered new exit (range 2) 874 | -10/Materials | Discovered new exit (range 5) 1001 | -10/Materials | Discovered new exit (range 3) 1006 | -10/Materials | Entered Subcaves 1046 | -10/Subcaves | A Subdweller sparked back to life 1046 | -10/Subcaves | A Subdweller sparked back to life 1046 | -10/Subcaves | A Subdweller sparked back to life 1097 | -10/Subcaves | Lost 3 parts (2n1w) 1342 | -10/Subcaves | Visited 4L-MR0's lab 1365 | -10/Subcaves | Found Power Bank 1371 | -10/Subcaves | Found Prototype Device 1788 | -10/Subcaves | Core integrity fell below 50% 1788 | -10/Subcaves | Found Arachnoskeleton 2341 | -10/Subcaves | Core integrity fell below 20% 2344 | -10/Subcaves | Destroyed by 0X-VS5(R) with Subdweller Shrapnel Launcher Last Messages --------------- Maxwheels Hoverbase Flightbrick Gun Armor Tower Shield Power Bank Rainbow Chip Procsplitter VL-GR5's Exoskeleton "Deathgrip" Powered Cannon 01357_ Testing Chamber breached. 01365_ Acquired Power Bank. 01371_ Acquired Prototype Device. 01769_ Subatomizers dissect the Disposable Heat Sink. 01785_ Dropped Med. Matter Pod. 01787_ Dropped Sensor Array. 01788_ Acquired Arachnoskeleton. 01789_ Extracted 51 matter. 02316_ 0X-VS5(R): "THANKSYOU!" 02324_ Ion Engine destroyed. Map ----- +----------------------------------------------------+ | ???? ????????????????????????????????????????????? | | ???"#????????????????????????????????????????????? | | ? #?????????????????????????????????????????????? | | #??????????????????????????????????????????????? | | ???????????????????????????????????????????????? | | ?????????????????????????????????????????????????? | | ?????????????????????????????????????????????????? | | ?????????????????????????????????????????????????? | | ?????????????????????????????????????????????????? | | ?????????????????????????????????????????????????? | | ?????????????????????????????????????????????????? | | ?????????????????????????????????????????????????? | | ?????????????????????????????????????????????????? | | ?????????????????????????????????????????????????? | | ?????????????????????????????????????????????????? | | #????????????????????????????????????????????????? | | #????????????????????????????????????????????????? | | #????????????????????????????????????????????????? | | #????????????????????????????????????????????????? | | ????????????????????###??????????????????????????? | | ????????????????????#;;####??????????????????????? | | ????????????????????#; ;;##?????????????????????? | | ????????????????????#; ; #?????????????????????? | | ???????????????######; ; #?????????????????????? | | ??????????????## ;;#; ; #?????????????????????? | | ??????????????# ^^ ;@##?????????????????????? | | ??????????????##^ ; ##?????????????????????? | | ?????????????##;^ ; ########??????????????? | | ?????????????# ; #??????????????? | | ?????????????# ;# ##?????????????? | | ????????????## # ##????????????? | | ????????????# # #????????????? | | ????????????# "# ##???????????? | | ????????????# ### "#### ??????? | | ????????????# ; ## * % ?????? | | ????????????##; R ;# !&[%! ?????? | | ?????????????## ### %% % ??????? | | ??????????????# #?## ###&= """#?????????? | | ??????????????## #?## "### " #????????? | | ?#######???###?# ##?# "# ##????????? | | ?# ##??# ### #### "##""" #?????????? | | ## ##?# ## #" "#####"" #?????????? | | # ### ## ### " #?##?#"""" ##?????????? | | ## # # ##" ##???#?######??????????? | | ## "##?#?#?????????#????????? | | # ## ##?#????????#????????????? | | #### ## ##????#???#?#?????????????? | | #?## ## ### #?????????????????#???????? | | ### #????#??##?##????#????????? | | ### ######?????????#???#??????? | +----------------------------------------------------+ Best States ------------- Heat Dissipation 25 Energy Generation 10 Energy Capacity 250 Matter Stores 300 Matter Capacity 300 Sight Range 16 Terrain Scan Range 16 Terrain Scan Density 10 Evasion (%) 40 Recoil Reduction 2 Item Schematics ----------------- None Robot Schematics ------------------ None Fabricated ------------ Nothing Repaired ---------- Seismic Detector | 50% | -10/Materials Studied --------- None Alien Tech Used ----------------- None Achievements -------------- Overwhelming Challenges ------------ None Game ------ Seed BlinkGravityProjector Manual? 0 Play Time 00:14:51 Cumulative 383.7 hours Start 2026.06.27 @ 21:41:32 End 2026.06.27 @ 21:54:55 Sessions 1 Manual Loads 0 Difficulty Rogue Special Mode None Game No. 288 Rogue 288 Adventurer 0 Explorer 0 Win Type - Total 7 Types 3/0/3/1/0/0/0/0/0/0 Lore% 75 Gallery% 71 Achievement% 38 Wizard Run 0 Options --------- Layout 2 ASCII 0 Keyboard 1 Movement Vi Keybinds 0 Fullscreen 2 Font 32/SmallcapsGlow Map View 77x44 Zoom Use 0% Tactical HUD 1 Map Filters NONE Filters NONE Steam 1 RUN: eb1e34ca-2cd2-4683-89dd-c4fb5fe9d1ed